bitfinex/quotes_BTCUSD_20250907
["timestamp","ask_amount","ask_price","bid_price","bid_amount"]
[1757287102416,4.058e-05,111390.0,111380.0,1.44523154]
[1757287111225,5.8e-07,111390.0,111380.0,1.25719384]
[1757287111368,5.8e-07,111390.0,111380.0,1.44523154]
[1757287112978,5.8e-07,111390.0,111380.0,1.25719384]
[1757287113209,5.8e-07,111390.0,111380.0,1.44523154]
[1757287116469,5.8e-07,111390.0,111380.0,1.525698]
[1757287116720,5.8e-07,111390.0,111380.0,1.3376603]
[1757287116943,5.8e-07,111390.0,111380.0,1.525698]
[1757287119032,0.07132941,111400.0,111390.0,0.20048815]
[1757287119261,0.0002,111410.0,111400.0,0.54047203]
[1757287119506,0.0002,111410.0,111400.0,1.22999342]
[1757287119710,0.0102,111430.0,111420.0,0.34]
[1757287119953,0.0102,111430.0,111420.0,1.22395119]
[1757287119954,0.01066471,111430.0,111420.0,1.22395119]
[1757287120240,0.01066471,111430.0,111420.0,1.51792686]
[1757287120482,0.01066471,111430.0,111420.0,0.84990392]
[1757287120721,0.01066471,111430.0,111420.0,1.2175226]
[1757287120940,0.01066471,111430.0,111420.0,1.0060426]
[1757287121375,0.01066471,111430.0,111420.0,1.1940803]
[1757287122478,0.01066471,111430.0,111420.0,1.2120603]
[1757287122700,0.00519573,111430.0,111420.0,1.1940803]
[1757287123349,0.00519573,111430.0,111420.0,1.5900803]
[1757287123614,0.00519573,111430.0,111420.0,1.5980803]
[1757287123853,0.00519573,111430.0,111420.0,1.63544086]
[1757287124306,0.00519573,111430.0,111420.0,1.63944086]
[1757287124900,0.00519573,111430.0,111420.0,1.26336546]
[1757287125175,0.00519573,111430.0,111420.0,0.91328566]
[1757287125394,0.00519573,111430.0,111420.0,1.42737434]
[1757287125571,0.00519573,111430.0,111420.0,1.45136316]
[1757287125811,0.1846806,111430.0,111420.0,1.10132336]
[1757287126000,0.1846806,111430.0,111420.0,1.42242434]
[1757287126151,0.1846806,111430.0,111420.0,1.02242434]
[1757287126372,0.00519573,111430.0,111420.0,1.02642434]
[1757287126593,0.00519573,111430.0,111420.0,1.42642434]
[1757287126994,0.00519573,111430.0,111420.0,1.02642434]
[1757287128164,0.00519573,111430.0,111420.0,1.04736316]
[1757287129686,0.00519573,111430.0,111420.0,1.23540086]
[1757287131318,0.00519573,111430.0,111420.0,1.63540086]
[1757287136469,0.00519573,111430.0,111420.0,1.63532086]
[1757287137476,0.00519573,111430.0,111420.0,1.88532086]
[1757287141810,0.00519573,111430.0,111420.0,1.73580086]
[1757287141970,0.00519573,111430.0,111420.0,1.83528086]
[1757287142194,0.00519573,111430.0,111420.0,1.68580086]
[1757287142401,0.00519573,111430.0,111420.0,1.83544086]
[1757287142592,0.00519573,111430.0,111420.0,1.85342086]
[1757287142799,0.00519573,111430.0,111420.0,1.83544086]
[1757287143231,0.00519573,111430.0,111420.0,1.45936546]
[1757287143447,0.00519573,111430.0,111420.0,1.83544086]
[1757287145704,0.00519573,111430.0,111420.0,1.45936546]
[1757287145906,0.00519573,111430.0,111420.0,1.83544086]
[1757287146552,0.00519573,111430.0,111420.0,1.88544086]
[1757287148371,0.08163666,111440.0,111430.0,0.72846139]
[1757287148590,0.08168311,111440.0,111430.0,1.04239738]
[1757287148743,0.08168311,111440.0,111430.0,1.04451738]
[1757287148947,0.08168311,111440.0,111430.0,1.44451738]
[1757287149357,0.08168311,111440.0,111430.0,1.63279508]
[1757287149559,0.08168311,111440.0,111430.0,1.71298563]
[1757287149765,0.08168311,111440.0,111430.0,1.37478793]
[1757287149968,0.08168311,111440.0,111430.0,1.52602793]
[1757287150311,0.08168311,111440.0,111430.0,1.52502793]
[1757287150808,0.08168311,111440.0,111430.0,1.71306563]
[1757287151217,0.08168311,111440.0,111430.0,1.33899023]
[1757287151431,0.08168311,111440.0,111430.0,1.52702793]
[1757287151641,0.08168311,111440.0,111430.0,1.44783738]
[1757287152106,0.08168311,111440.0,111430.0,1.10955968]
[1757287152317,0.08168311,111440.0,111430.0,1.44883738]
[1757287152946,0.08168311,111440.0,111430.0,1.26079968]
[1757287153162,0.08168311,111440.0,111430.0,1.44883738]
[1757287153987,0.08168311,111440.0,111430.0,1.44783738]
[1757287154341,0.08168311,111440.0,111430.0,1.44983738]
[1757287154795,0.08168311,111440.0,111430.0,1.66523738]
[1757287155411,0.08168311,111440.0,111430.0,1.32595968]
[1757287155635,0.08168311,111440.0,111430.0,1.66551738]
[1757287155847,0.08168311,111440.0,111430.0,1.51399738]
[1757287156055,0.08168311,111440.0,111430.0,1.66551738]
[1757287156272,0.08168311,111440.0,111430.0,1.64139856]
[1757287156922,0.08168311,111440.0,111430.0,1.66551738]
[1757287158539,0.08168311,111440.0,111430.0,1.11399738]
[1757287158762,0.08168311,111440.0,111430.0,1.26233738]
[1757287158977,0.26650188,111440.0,111430.0,1.26229738]
[1757287159399,0.26650188,111440.0,111430.0,1.11681769]
[1757287159605,0.26650188,111440.0,111430.0,1.26621769]
[1757287159997,0.26650188,111440.0,111430.0,1.26833769]
[1757287160215,0.26326188,111440.0,111430.0,1.07829999]
[1757287160440,0.08168311,111440.0,111430.0,1.26633769]
[1757287160581,0.08168311,111440.0,111430.0,1.27157769]
[1757287160801,0.26115188,111440.0,111430.0,1.27157769]
[1757287161013,0.26115188,111440.0,111430.0,1.26957769]
[1757287161425,0.26115188,111440.0,111430.0,1.05617769]
[1757287162280,0.26115188,111440.0,111430.0,1.05604767]
[1757287163255,0.26115188,111440.0,111430.0,0.86813999]
[1757287163456,0.26115188,111440.0,111430.0,1.05604767]
[1757287167092,0.26115188,111440.0,111430.0,0.86489999]
[1757287167459,0.26115188,111440.0,111430.0,1.05280767]
[1757287167645,0.26115188,111440.0,111430.0,1.05604767]
[1757287168788,0.08168311,111440.0,111430.0,1.05604767]
[1757287169206,0.08168311,111440.0,111430.0,1.26489417]
[1757287169668,0.26115188,111440.0,111430.0,1.07698649]
[1757287169877,0.26115188,111440.0,111430.0,1.07374649]
[1757287170093,0.08168311,111440.0,111430.0,1.07698649]
[1757287170313,0.26115188,111440.0,111430.0,1.07698649]
[1757287170526,0.08168311,111440.0,111430.0,1.07698649]
[1757287170739,0.08168311,111440.0,111430.0,1.26489417]
[1757287171171,0.07116464,111440.0,111430.0,1.26489417]
[1757287172267,0.07116464,111440.0,111430.0,1.34508472]
[1757287173640,0.05644001,111440.0,111430.0,1.34508472]
[1757287174263,0.05644001,111440.0,111430.0,1.74508472]
[1757287175305,0.05644001,111440.0,111430.0,1.59356472]
[1757287175511,0.05644001,111440.0,111430.0,1.74492472]
[1757287176825,0.05644001,111440.0,111430.0,1.74488472]
[1757287179823,0.05644001,111440.0,111430.0,1.55697704]
[1757287180924,0.05644001,111440.0,111430.0,1.21774936]
[1757287181162,0.05644001,111440.0,111430.0,1.55689704]
[1757287185889,0.05444001,111440.0,111430.0,1.55689704]
[1757287186321,0.05444001,111440.0,111430.0,1.36898936]
[1757287186963,0.05444001,111440.0,111430.0,1.55689704]
[1757287187183,0.05444001,111440.0,111430.0,1.36898936]
[1757287187388,0.05444001,111440.0,111430.0,1.55689704]
[1757287187610,0.05444001,111440.0,111430.0,1.36898936]
[1757287187829,0.05444001,111440.0,111430.0,1.55689704]
[1757287189012,0.05444001,111440.0,111430.0,1.36898936]
[1757287189241,0.05444001,111440.0,111430.0,1.55689704]
[1757287190279,0.05444001,111440.0,111430.0,1.74480472]
[1757287192080,0.05444001,111440.0,111430.0,1.36898936]
[1757287192293,0.05444001,111440.0,111430.0,1.74480472]
[1757287194275,0.05444001,111440.0,111430.0,1.55689704]
[1757287195430,0.23586878,111440.0,111430.0,0.63502449]
[1757287195692,0.23907878,111440.0,111430.0,0.27196567]
[1757287195928,0.23907878,111440.0,111430.0,0.34385512]
[1757287196132,0.23586878,111440.0,111430.0,0.8737628]
[1757287196393,0.23586878,111440.0,111430.0,1.05324767]
[1757287196394,0.23390878,111440.0,111430.0,1.05324767]
[1757287196943,0.23390878,111440.0,111430.0,1.07122767]
[1757287197150,0.23390878,111440.0,111430.0,0.86533999]
[1757287197355,0.23390878,111440.0,111430.0,1.05324767]
[1757287197555,0.23390878,111440.0,111430.0,0.86533999]
[1757287197814,0.23390878,111440.0,111430.0,1.05352767]
[1757287197963,0.23390878,111440.0,111430.0,0.86561999]
[1757287198353,0.23390878,111440.0,111430.0,1.05352767]
[1757287198553,0.05444001,111440.0,111430.0,1.05352767]
[1757287199015,0.05640001,111440.0,111430.0,0.86561999]
[1757287199208,0.05444001,111440.0,111430.0,1.05352767]
[1757287199412,0.05444001,111440.0,111430.0,0.86561999]
[1757287199661,0.05444001,111440.0,111430.0,1.05352767]
[1757287199993,0.05444001,111440.0,111430.0,0.86561999]
[1757287200254,0.05444001,111440.0,111430.0,1.05352767]
[1757287200455,0.05444001,111440.0,111430.0,0.86561999]
[1757287200658,0.05640001,111440.0,111430.0,0.86561999]
[1757287200859,0.05444001,111440.0,111430.0,1.05352767]
[1757287201280,0.05444001,111440.0,111430.0,0.86561999]
[1757287201523,0.05444001,111440.0,111430.0,1.05672767]
[1757287201704,0.05444001,111440.0,111430.0,1.05352767]
[1757287202697,0.05444001,111440.0,111430.0,1.05672767]
[1757287202909,0.05444001,111440.0,111430.0,0.86881999]
[1757287203129,0.05444001,111440.0,111430.0,1.05352767]
[1757287203346,0.05444001,111440.0,111430.0,0.86561999]
[1757287203770,0.05444001,111440.0,111430.0,1.05352767]
[1757287204206,0.05640001,111440.0,111430.0,0.86361999]
[1757287204416,0.23907878,111440.0,111430.0,0.86561999]
[1757287204848,0.05444001,111440.0,111430.0,1.05352767]
[1757287206643,0.05444001,111440.0,111430.0,1.45352767]
[1757287207291,0.05444001,111440.0,111430.0,1.47766649]
[1757287207499,0.05444001,111440.0,111430.0,1.66557417]
[1757287207746,0.05444001,111440.0,111430.0,1.34576472]
[1757287208162,0.05444001,111440.0,111430.0,1.74576472]
[1757287209681,0.04367012,111440.0,111430.0,1.66557417]
[1757287209878,0.04367012,111440.0,111430.0,1.92877417]
[1757287210098,0.04367012,111440.0,111430.0,2.04104095]
[1757287214306,0.04367012,111440.0,111430.0,1.92877417]
[1757287217011,0.04367012,111440.0,111430.0,1.55295881]
[1757287217220,0.04367012,111440.0,111430.0,1.92877417]
[1757287218460,0.04367012,111440.0,111430.0,2.00898504]
[1757287219658,0.04367012,111440.0,111430.0,1.63316968]
[1757287219861,0.04367012,111440.0,111430.0,2.01130504]
[1757287224559,0.04367012,111440.0,111430.0,1.82333723]
[1757287224785,0.04367012,111440.0,111430.0,1.63548968]
[1757287224967,0.04367012,111440.0,111430.0,1.82333723]
[1757287227890,0.04367012,111440.0,111430.0,1.82309723]
[1757287228310,0.04367012,111440.0,111430.0,1.82109723]
[1757287228513,0.04367012,111440.0,111430.0,1.82209723]
[1757287228938,0.04367012,111440.0,111430.0,1.63124968]
[1757287229169,0.04367012,111440.0,111430.0,1.82009723]
[1757287229410,0.03290047,111440.0,111430.0,1.94774478]
[1757287229625,0.03290047,111440.0,111430.0,1.67968636]
[1757287229850,0.03290047,111440.0,111430.0,1.72668636]
[1757287230074,0.03290047,111440.0,111430.0,1.72968636]
[1757287230332,0.0002,111450.0,111440.0,0.59040759]
[1757287230619,0.0002,111450.0,111440.0,0.82901207]
[1757287230856,0.0002,111450.0,111440.0,1.23884947]
[1757287231081,0.0002,111450.0,111440.0,1.69884947]
[1757287231537,0.0002,111460.0,111440.0,1.69884947]
[1757287231538,0.36823974,111510.0,111490.0,0.17938828]
[1757287231787,0.18039219,111510.0,111500.0,0.25071599]
[1757287232304,0.23445079,111530.0,111500.0,0.62321573]
[1757287232305,0.19346171,111530.0,111500.0,0.62321573]
[1757287232545,0.38130926,111530.0,111510.0,0.17934869]
[1757287232793,0.18136002,111520.0,111500.0,0.28025678]
[1757287233025,0.36920757,111520.0,111510.0,0.15962418]
[1757287233263,0.18986755,111520.0,111510.0,0.43089628]
[1757287233491,0.00202,111520.0,111510.0,0.45782089]
[1757287233731,0.18660731,111520.0,111510.0,0.45782089]
[1757287233975,0.37220757,111520.0,111510.0,0.27978478]
[1757287234214,0.37220757,111520.0,111510.0,0.12030478]
[1757287234457,0.39654757,111520.0,111510.0,0.27978478]
[1757287234698,0.20870002,111520.0,111510.0,0.27978478]
[1757287235147,0.20870002,111520.0,111510.0,0.27878478]
[1757287235356,0.39654757,111520.0,111510.0,0.27878478]
[1757287236560,0.20870002,111520.0,111510.0,0.27878478]
[1757287236788,0.39654757,111520.0,111510.0,0.27878478]
[1757287238493,0.20870002,111520.0,111510.0,0.27878478]
[1757287238826,0.39654757,111520.0,111510.0,0.27878478]
[1757287239027,0.20870002,111520.0,111510.0,0.27878478]
[1757287240947,0.18436002,111520.0,111510.0,0.27878478]
[1757287241548,0.18436002,111520.0,111510.0,0.45814089]
[1757287242412,0.18436002,111520.0,111510.0,0.46024089]
[1757287242413,0.00502,111520.0,111510.0,0.46024089]
[1757287242616,0.00202,111520.0,111510.0,0.46024089]
[1757287242833,0.00202,111520.0,111510.0,0.80024089]
[1757287243042,0.19646171,111530.0,111520.0,0.17934002]
[1757287243274,0.19646171,111530.0,111520.0,0.34013601]
[1757287243275,0.19848171,111530.0,111520.0,0.34013601]
[1757287243728,0.0101,111530.0,111520.0,0.36915875]
[1757287244374,0.0071,111530.0,111520.0,0.36915875]
[1757287245208,0.0071,111530.0,111520.0,0.5601863]
[1757287245436,0.0071,111530.0,111520.0,0.37233875]
[1757287245650,0.00508,111530.0,111520.0,0.37233875]
[1757287249137,0.0071,111530.0,111520.0,0.37233875]
[1757287249679,0.0071,111530.0,111520.0,0.36915875]
[1757287250407,0.0071,111530.0,111520.0,0.37236875]
[1757287252210,0.18642394,111530.0,111520.0,0.37236875]
[1757287253090,0.0071,111530.0,111520.0,0.37236875]
[1757287253637,0.00508,111530.0,111520.0,0.37236875]
[1757287254435,0.00508,111530.0,111520.0,0.9002163]
[1757287254661,0.00508,111530.0,111520.0,0.71236875]
[1757287255115,0.00715,111530.0,111520.0,0.71236875]
[1757287255958,0.00508,111530.0,111520.0,0.71236875]
[1757287256938,0.00715,111530.0,111520.0,0.70915875]
[1757287257422,0.00715,111530.0,111520.0,0.71236875]
[1757287257636,0.00715,111530.0,111520.0,0.70915875]
[1757287258473,0.22191227,111560.0,111550.0,0.76146339]
[1757287258773,0.41068982,111560.0,111550.0,0.92102339]
[1757287258962,0.41068982,111560.0,111550.0,0.76146339]
[1757287259365,0.59853737,111560.0,111550.0,0.76146339]
[1757287259540,0.93853737,111560.0,111550.0,0.76146339]
[1757287259929,0.93853737,111560.0,111550.0,0.76192757]
[1757287260388,0.93853737,111560.0,111520.0,0.02692453]
[1757287260389,0.17932394,111530.0,111520.0,0.02692453]
[1757287260614,0.17934002,111520.0,111510.0,0.2304756]
[1757287260844,0.17934002,111520.0,111510.0,0.32239159]
[1757287260845,0.39251757,111520.0,111510.0,0.32239159]
[1757287261142,0.92036512,111520.0,111510.0,0.00088819]
[1757287261596,0.70411002,111520.0,111510.0,0.00088819]
[1757287261831,0.92036512,111520.0,111510.0,0.00088819]
[1757287262064,1.07980512,111520.0,111510.0,0.00088819]
[1757287262726,1.07984512,111520.0,111510.0,0.00088819]
[1757287262939,1.08184512,111520.0,111510.0,0.00088819]
[1757287263151,0.92236512,111520.0,111510.0,0.00088819]
[1757287263357,1.08176512,111520.0,111510.0,0.00088819]
[1757287263568,1.09176512,111520.0,111510.0,0.00088819]
[1757287263782,1.09240512,111520.0,111510.0,0.00088819]
[1757287263975,1.09244512,111520.0,111510.0,0.00088819]
[1757287264183,0.90455757,111520.0,111510.0,0.00088819]
[1757287264595,1.09240512,111520.0,111510.0,0.00088819]
[1757287265684,0.55667002,111520.0,111510.0,0.00088819]
[1757287265897,0.90467757,111520.0,111510.0,0.00088819]
[1757287267250,0.71683002,111520.0,111510.0,0.00088819]
[1757287267484,0.90467757,111520.0,111510.0,0.00088819]
[1757287268468,0.71683002,111520.0,111510.0,0.00088819]
[1757287268694,0.90467757,111520.0,111510.0,0.00088819]
[1757287268901,0.71683002,111520.0,111510.0,0.00088819]
[1757287269117,0.90467757,111520.0,111510.0,0.00088819]
[1757287269971,0.40451757,111520.0,111510.0,0.09280418]
[1757287270201,0.40393757,111520.0,111510.0,0.09280418]
[1757287271037,0.18227002,111520.0,111510.0,0.09280418]
[1757287271255,0.18327002,111520.0,111510.0,0.09280418]
[1757287271475,0.37011757,111520.0,111510.0,0.09280418]
[1757287271684,0.18027002,111520.0,111510.0,0.09280418]
[1757287271893,0.18027002,111520.0,111510.0,0.09880418]
[1757287272104,0.18227002,111520.0,111510.0,0.09880418]
[1757287272580,0.18027002,111520.0,111510.0,0.09880418]
[1757287272793,0.18027002,111520.0,111510.0,0.10180418]
[1757287274283,0.18027002,111520.0,111510.0,0.26208418]
[1757287275793,0.17934002,111520.0,111510.0,0.44665029]
[1757287276028,0.17932394,111530.0,111510.0,0.44665029]
[1757287276248,0.17932394,111530.0,111520.0,0.09191599]
[1757287276720,0.18025394,111530.0,111520.0,0.09191599]
[1757287277601,0.37110149,111530.0,111520.0,0.09191599]
[1757287278055,0.37210149,111530.0,111520.0,0.09191599]
[1757287278597,0.18325394,111530.0,111520.0,0.09191599]
[1757287278798,0.18025394,111530.0,111520.0,0.09191599]
[1757287279230,0.18225394,111530.0,111520.0,0.09191599]
[1757287280757,0.18025394,111530.0,111520.0,0.09191599]
[1757287281330,0.18225394,111530.0,111520.0,0.09491599]
[1757287281534,0.18025394,111530.0,111520.0,0.09491599]
[1757287281830,0.18025394,111530.0,111520.0,0.27825601]
[1757287282064,0.18025394,111530.0,111520.0,0.09891599]
[1757287282655,0.18025394,111530.0,111520.0,0.10203599]
[1757287283116,0.36810149,111530.0,111520.0,0.10203599]
[1757287283289,0.36868149,111530.0,111520.0,0.25843599]
[1757287283491,0.39316149,111530.0,111520.0,0.25843599]
[1757287283722,0.39316149,111530.0,111520.0,0.09891599]
[1757287283941,0.39316149,111530.0,111520.0,0.007]
[1757287283942,0.55252149,111530.0,111520.0,0.007]
[1757287284211,0.89252149,111530.0,111520.0,0.007]
[1757287284855,0.89252149,111530.0,111520.0,0.004]
[1757287285063,0.17934002,111520.0,111510.0,0.00088819]
[1757287285274,0.36718757,111520.0,111510.0,0.00088819]
[1757287285517,0.39317757,111520.0,111510.0,0.00088819]
[1757287286357,0.58087164,111520.0,111510.0,0.00088819]
[1757287287005,0.76864245,111520.0,111510.0,0.00088819]
[1757287287222,1.10864245,111520.0,111510.0,0.00088819]
[1757287287436,1.14832041,111520.0,111510.0,0.00488819]
[1757287287651,1.14832041,111520.0,111510.0,0.00088819]
[1757287288149,1.15132041,111520.0,111510.0,0.00088819]
[1757287288814,0.36715909,111490.0,111480.0,0.13965212]
[1757287289029,0.36715909,111490.0,111480.0,0.2320333]
[1757287289030,0.39314909,111490.0,111480.0,0.2320333]
[1757287289685,0.39314909,111490.0,111480.0,0.16142118]
[1757287290111,0.39314909,111490.0,111480.0,0.09238118]
[1757287290572,0.39314909,111490.0,111480.0,0.10038118]
[1757287290800,0.39314909,111490.0,111480.0,0.09238118]
[1757287290989,0.39314909,111490.0,111480.0,0.09838118]
[1757287291445,0.20479828,111490.0,111480.0,0.09838118]
[1757287291799,0.17938828,111490.0,111480.0,0.47069636]
[1757287291889,0.17938828,111490.0,111480.0,0.28292555]
[1757287292339,0.18031828,111490.0,111480.0,0.28292555]
[1757287292579,0.18031828,111490.0,111480.0,0.09838118]
[1757287292804,0.36808909,111490.0,111480.0,0.16038118]
[1757287293513,0.36808909,111490.0,111480.0,0.34492555]
[1757287293753,0.36715745,111500.0,111480.0,0.53269636]
[1757287293946,0.36715745,111500.0,111490.0,0.25147599]
[1757287294202,0.36808745,111500.0,111490.0,0.25147599]
[1757287296080,0.36808745,111500.0,111490.0,0.25347599]
[1757287297054,0.36808745,111500.0,111490.0,0.25659599]
[1757287297304,0.36808745,111500.0,111490.0,0.25847599]
[1757287298539,0.36756594,111500.0,111490.0,0.25847599]
[1757287299020,0.36814594,111500.0,111490.0,0.25847599]
[1757287299602,0.55591675,111500.0,111490.0,0.25847599]
[1757287300565,0.36756594,111500.0,111490.0,0.25847599]
[1757287300764,0.17979513,111500.0,111490.0,0.25847599]
[1757287300990,0.36756594,111500.0,111490.0,0.25847599]
[1757287301594,0.19777363,111510.0,111490.0,0.25847599]
[1757287301595,0.18835188,111510.0,111490.0,0.63077508]
[1757287301798,0.18835188,111510.0,111500.0,0.18249219]
[1757287301998,0.18835188,111510.0,111500.0,0.27440818]
[1757287302207,0.18928188,111510.0,111500.0,0.27440818]
[1757287302825,0.19128188,111510.0,111500.0,0.27642818]
[1757287303394,0.19128188,111510.0,111500.0,0.34328818]
[1757287304242,0.18928188,111510.0,111500.0,0.34328818]
[1757287304421,0.18928188,111510.0,111500.0,0.37021598]
[1757287304602,0.19428188,111510.0,111500.0,0.37021598]
[1757287305353,0.18928188,111510.0,111500.0,0.37021598]
[1757287305672,0.18928188,111510.0,111500.0,0.37721598]
[1757287305891,0.18928188,111510.0,111500.0,0.19472379]
[1757287306102,0.18028611,111510.0,111500.0,0.53581598]
[1757287306241,0.18028611,111510.0,111500.0,0.53783598]
[1757287306679,0.00093,111510.0,111500.0,0.72560679]
[1757287306941,0.17934002,111520.0,111500.0,0.53783598]
[1757287307162,0.36711083,111520.0,111510.0,0.09191599]
[1757287307367,0.36804083,111520.0,111510.0,0.09191599]
[1757287308248,0.37204083,111520.0,111510.0,0.09191599]
[1757287308752,0.37004083,111520.0,111510.0,0.09191599]
[1757287308979,0.37304083,111520.0,111510.0,0.09191599]
[1757287309213,0.37104083,111520.0,111510.0,0.09191599]
[1757287309435,0.37104083,111520.0,111510.0,0.09691599]
[1757287310234,0.36804083,111520.0,111510.0,0.09691599]
[1757287310538,0.36804083,111520.0,111510.0,0.09891599]
[1757287310971,0.18027002,111520.0,111510.0,0.09891599]
[1757287311180,0.18027002,111520.0,111510.0,0.2866868]
[1757287311338,0.18027002,111520.0,111510.0,0.09891599]
[1757287311763,0.18027002,111520.0,111510.0,0.2866868]
[1757287312758,0.18027002,111520.0,111510.0,0.09891599]
[1757287312960,0.18027002,111520.0,111510.0,0.2866868]
[1757287314427,0.18027002,111520.0,111510.0,0.09891599]
[1757287316110,0.18027002,111520.0,111510.0,0.2866868]
[1757287316305,0.18027002,111520.0,111510.0,0.10209599]
[1757287316516,0.18027002,111520.0,111510.0,0.2898668]
[1757287316708,0.18027002,111520.0,111510.0,0.2866868]
[1757287317564,0.18027002,111520.0,111510.0,0.2898668]
[1757287318352,0.18027002,111520.0,111510.0,0.2866868]
[1757287319629,0.18027002,111520.0,111510.0,0.46604291]
[1757287321215,0.22223024,111530.0,111510.0,0.47134291]
[1757287321216,0.18829013,111530.0,111510.0,0.47134291]
[1757287321430,0.18829013,111530.0,111520.0,0.15764]
[1757287321639,0.18829013,111530.0,111520.0,0.61666682]
[1757287321824,0.18922013,111530.0,111520.0,0.62196682]
[1757287321961,0.18922013,111530.0,111520.0,0.62228682]
[1757287322400,0.18828768,111540.0,111520.0,0.62228682]
[1757287322601,0.18828768,111540.0,111530.0,0.27123993]
[1757287323009,0.18921768,111540.0,111530.0,0.09191599]
[1757287324957,0.37756849,111540.0,111530.0,0.25479599]
[1757287325926,0.37756849,111540.0,111530.0,0.25459599]
[1757287326147,0.37756849,111540.0,111530.0,0.09691599]
[1757287326360,0.37756849,111540.0,111530.0,0.25459599]
[1757287326560,0.37698849,111540.0,111530.0,0.25459599]
[1757287327724,0.18921768,111540.0,111530.0,0.25559599]
[1757287329772,0.18921768,111540.0,111530.0,0.25559599]
[1757287331547,0.18921768,111540.0,111530.0,0.09791599]
[1757287331757,0.37756849,111540.0,111530.0,0.25535599]
[1757287332082,0.18921768,111540.0,111530.0,0.25535599]
[1757287332295,0.37698849,111540.0,111530.0,0.25535599]
[1757287332490,0.37698849,111540.0,111530.0,0.09791599]
[1757287332695,0.37698849,111540.0,111530.0,0.25527599]
[1757287335622,0.37698849,111540.0,111530.0,0.09791599]
[1757287335849,0.37698849,111540.0,111530.0,0.25507599]
[1757287336043,0.37756849,111540.0,111530.0,0.25507599]
[1757287336241,0.18921768,111540.0,111530.0,0.25507599]
[1757287336419,0.37698849,111540.0,111530.0,0.25507599]
[1757287339125,0.18921768,111540.0,111530.0,0.25507599]
[1757287340607,0.18921768,111540.0,111530.0,0.25822599]
[1757287341681,0.18921768,111540.0,111530.0,0.25507599]
[1757287342336,0.18921768,111540.0,111530.0,0.25475599]
[1757287342560,0.37698849,111540.0,111530.0,0.25475599]
[1757287342899,0.37698849,111540.0,111530.0,0.09791599]
[1757287343106,0.37698849,111540.0,111530.0,0.25471599]
[1757287343521,0.37756849,111540.0,111530.0,0.25471599]
[1757287343947,0.37756849,111540.0,111530.0,0.09791599]
[1757287344162,0.37698849,111540.0,111530.0,0.25467599]
[1757287344570,0.18828768,111540.0,111530.0,0.25467599]
[1757287344753,0.18828768,111540.0,111530.0,0.25782599]
[1757287344990,0.37698849,111540.0,111530.0,0.25782599]
[1757287345404,0.37698849,111540.0,111530.0,0.25463599]
[1757287346533,0.18921768,111540.0,111530.0,0.25463599]
[1757287346738,0.18921768,111540.0,111530.0,0.09791599]
[1757287346939,0.18921768,111540.0,111530.0,0.25455599]
[1757287347289,0.18921768,111540.0,111530.0,0.09791599]
[1757287347510,0.18921768,111540.0,111530.0,0.25451599]
[1757287349152,0.18828768,111540.0,111530.0,0.25451599]
[1757287349386,0.18921768,111540.0,111530.0,0.25451599]
[1757287349810,0.18921768,111540.0,111530.0,0.25766599]
[1757287350241,0.18921768,111540.0,111530.0,0.10106599]
[1757287350422,0.18921768,111540.0,111530.0,0.25435599]
[1757287354138,0.18921768,111540.0,111530.0,0.44199263]
[1757287357713,0.18921768,111540.0,111530.0,0.50199263]
[1757287360333,0.18828768,111540.0,111530.0,0.50714263]
[1757287360970,0.18828768,111540.0,111530.0,0.31750599]
[1757287360971,0.18921768,111540.0,111530.0,0.31750599]
[1757287361178,0.18921768,111540.0,111530.0,0.50514263]
[1757287361592,0.18921768,111540.0,111530.0,0.50199263]
[1757287364031,0.18921768,111540.0,111530.0,0.31435599]
[1757287364228,0.18921768,111540.0,111530.0,0.50199263]
[1757287366197,0.18921768,111540.0,111530.0,0.50514263]
[1757287366499,0.18921768,111540.0,111530.0,0.50714263]
[1757287367074,0.18921768,111540.0,111530.0,0.50514263]
[1757287367540,0.18921768,111540.0,111530.0,0.50714263]
[1757287369374,0.18921768,111540.0,111530.0,0.50514263]
[1757287370584,0.18921768,111540.0,111530.0,0.50199263]
[1757287370999,0.18921768,111540.0,111530.0,0.50500263]
[1757287372372,0.18921768,111540.0,111530.0,0.50199263]
[1757287372992,0.18921768,111540.0,111530.0,0.50500263]
[1757287373704,0.18921768,111540.0,111530.0,0.50199263]
[1757287374250,0.18921768,111540.0,111530.0,0.50500263]
[1757287376135,0.18921768,111540.0,111530.0,0.16092599]
[1757287376342,0.18921768,111540.0,111530.0,0.15791599]
[1757287376551,0.18921768,111540.0,111530.0,0.31291599]
[1757287377506,0.18979768,111540.0,111530.0,0.31311599]
[1757287377991,0.18921768,111540.0,111530.0,0.31311599]
[1757287378331,0.18921768,111540.0,111530.0,0.25311599]
[1757287378572,0.18921768,111540.0,111530.0,0.28555263]
[1757287378739,0.18921768,111540.0,111530.0,0.44067263]
[1757287378938,0.18921768,111540.0,111530.0,0.28555263]
[1757287379161,0.18979768,111540.0,111530.0,0.44059263]
[1757287379932,0.21377768,111540.0,111530.0,0.44059263]
[1757287381084,0.21377768,111540.0,111530.0,0.006]
[1757287381297,0.36869768,111540.0,111530.0,0.006]
[1757287384913,0.40999358,111540.0,111530.0,0.006]
[1757287387591,0.40999358,111540.0,111530.0,0.19363664]
[1757287390473,0.40959358,111540.0,111530.0,0.19363664]
[1757287390829,0.25507358,111540.0,111530.0,0.006]
[1757287391039,0.43652294,111540.0,111530.0,0.19363664]
[1757287391472,0.43648294,111540.0,111530.0,0.19363664]
[1757287392970,0.43648294,111540.0,111530.0,0.006]
[1757287398945,0.77648294,111540.0,111530.0,0.006]
[1757287399373,0.96411958,111540.0,111530.0,0.006]
[1757287399596,0.77648294,111540.0,111530.0,1e-08]
[1757287401962,0.77624294,111540.0,111530.0,1e-08]
[1757287406508,0.96391259,111540.0,111530.0,1e-08]
[1757287412765,0.77624294,111540.0,111530.0,1e-08]
[1757287413167,1.15158224,111540.0,111530.0,1e-08]
[1757287413381,0.96391259,111540.0,111530.0,1e-08]
[1757287414422,0.77624294,111540.0,111530.0,1e-08]
[1757287414659,0.96391259,111540.0,111530.0,1e-08]
[1757287416512,0.77624294,111540.0,111530.0,1e-08]
[1757287416717,0.96391259,111540.0,111530.0,1e-08]
[1757287416933,1.05582858,111540.0,111530.0,1e-08]
[1757287418588,0.86815893,111540.0,111530.0,1e-08]
[1757287418800,1.05582858,111540.0,111530.0,1e-08]
[1757287421707,0.86815893,111540.0,111530.0,1e-08]
[1757287421931,1.05582858,111540.0,111530.0,1e-08]
[1757287425237,1.07519952,111540.0,111530.0,1e-08]
[1757287427302,1.16969952,111540.0,111530.0,1e-08]
[1757287427532,1.07519952,111540.0,111530.0,1e-08]
[1757287430167,1.05582858,111540.0,111530.0,1e-08]
[1757287430398,1.07520585,111540.0,111530.0,1e-08]
[1757287434374,0.92096585,111540.0,111530.0,1e-08]
[1757287434582,1.07528585,111540.0,111530.0,1e-08]
[1757287438052,0.8876162,111540.0,111530.0,1e-08]
[1757287438252,1.07528585,111540.0,111530.0,1e-08]
[1757287439706,0.8876162,111540.0,111530.0,1e-08]
[1757287439913,1.07528585,111540.0,111530.0,1e-08]